fUSD/lending_fUSD_20241122
["ID","MTS","AMOUNT","RATE_DAILY","PERIOD"]
[342997699,1732269066597,-621.68,0.00096999,120]
[342997700,1732269066607,-1189.26,0.00096999,120]
[342997701,1732269066617,-500.0,0.00096999,120]
[342997702,1732269066627,-621.68,0.00096999,120]
[342997703,1732269066638,-1189.26,0.00096999,120]
[342997704,1732269066648,-621.68,0.00096999,120]
[342997705,1732269066658,-1189.26,0.00096999,120]
[342997706,1732269066668,-621.68,0.00096999,120]
[342997707,1732269066678,-1189.26,0.00096999,120]
[342997708,1732269066687,-621.91,0.00096999,120]
[342997709,1732269066697,-1189.26,0.00096999,120]
[342997710,1732269066713,-1189.26,0.00096999,120]
[342997711,1732269066733,-500.0,0.00096999,120]
[342997712,1732269066754,-500.0,0.00096999,120]
[342997713,1732269066773,-1189.43,0.00096999,120]
[342997714,1732269066789,-459.41693106,0.00096999,120]
[342997715,1732269066810,-500.0,0.00096999,120]
[342997716,1732269066829,-500.0,0.00096999,120]
[342997717,1732269066851,-566.30999999,0.00096999,120]
[342997718,1732269066869,-647.51,0.00096999,120]
[342997719,1732269066887,-647.51,0.00096999,120]
[342997720,1732269066906,-647.51,0.00096999,120]
[342997721,1732269066921,-647.51,0.00096999,120]
[342997722,1732269066938,-647.51,0.00096999,120]
[342997723,1732269066953,-647.51,0.00096999,120]
[342997724,1732269066968,-647.51,0.00096999,120]
[342997725,1732269066984,-647.51,0.00096999,120]
[342997726,1732269067001,-647.51,0.00096999,120]
[342997727,1732269067016,-647.51,0.00096999,120]
[342997728,1732269067030,-647.51,0.00096999,120]
[342997729,1732269067045,-647.51,0.00096999,120]
[342997730,1732269067059,-647.51,0.00096999,120]
[342997731,1732269067073,-647.51,0.00096999,120]
[342997732,1732269067088,-647.53318294,0.00096999,120]
[342997733,1732269067104,-500.0,0.00096999,120]
[342997734,1732269067118,-500.0,0.00096999,120]
[342997735,1732269067133,-500.0,0.00096999,120]
[342997736,1732269067149,-500.0,0.00096999,120]
[342997737,1732269067163,-500.0,0.00096999,120]
[342997738,1732269067178,-500.0,0.00096999,120]
[342997739,1732269067193,-500.0,0.00096999,120]
[342997740,1732269067208,-500.0,0.00096999,120]
[342997741,1732269067223,-563.2,0.00096999,120]
[342997742,1732269067237,-358285.4568378,0.00096999,40]
[342997743,1732269067252,-48165.54049961,0.00096999,61]
[342997744,1732269067268,-50000.0,0.00097,70]
[342997745,1732269067283,-879.09377895,0.00097,120]
[342997746,1732269067300,-525004.96380051,0.00097,120]
[342997747,1732269067430,-12954.43518019,0.00097,120]
[342997748,1732269067619,-1213.96115847,0.00097,120]
[342997749,1732269067654,-825.24194138,0.00097,120]
[342997750,1732269067673,-431.760005,0.0009315,120]
[342997751,1732269067685,-132.989995,0.0009315,120]
[342997752,1732269067695,-1438.52399433,0.00097,120]
[342997753,1732269067706,-251.49866019,0.00097,120]
[342997754,1732269067721,-500.0,0.00094999,120]
[342997755,1732269067730,-4434.0985,0.00097,120]
[342997756,1732269067830,-5633.91404603,0.00097,120]
[342997757,1732269067854,-500.0,0.0009315,120]
[342997758,1732269067864,-41.47655687,0.0009315,120]
[342997759,1732269067875,-458.52344313,0.0009315,120]
[342997760,1732269067888,-564.75,0.0009315,120]
[342997761,1732269067897,-1359.13233537,0.00097,120]
[342997762,1732269067938,-25.24937074,0.00094999,120]
[342997763,1732269067950,-474.75062926,0.00094999,120]
[342997764,1732269067959,-222.60121275,0.00097,120]
[342997765,1732269068014,-564.75,0.00094998,120]
[342997766,1732269068023,-500.0,0.00094998,120]
[342997767,1732269068032,-500.0,0.00096998,120]
[342997768,1732269068042,-2426.95713088,0.00097,120]
[342997769,1732269068053,-4174.34002773,0.00097,120]
[342997770,1732269068063,-3306.68041053,0.00097,120]
[342997771,1732269068074,-311.23,0.00097,120]
[342997772,1732269068087,-93406.53952614,0.00097,120]
[342997773,1732269068097,-6082.28328936,0.00097,120]
[342997774,1732269068766,700.967602,0.000428,30]
[342997775,1732269071803,482.15049894,0.00043115,120]
[342997776,1732269104252,150.0,0.00089091,120]
[342997777,1732269117546,1982.09469175,0.00085,120]
[342997778,1732269124473,548.0,0.00054795,120]
[342997779,1732269128407,515.0,0.00054795,120]
[342997780,1732269130333,151.0,0.0003,120]
[342997781,1732269130968,641.0,0.00054795,120]
[342997782,1732269136008,500.0,0.0005185,60]
[342997783,1732269166874,1401.95433068,0.000488,2]
[342997784,1732269247307,600.0,0.00045,7]
[342997785,1732269265015,634.2221,0.0005,2]
[342997786,1732269295888,2279.32848437,0.00049799,5]
[342997787,1732269389162,300.75991054,0.00030137,2]
[342997788,1732269405558,-150.0,0.00055,100]
[342997789,1732269405586,-150.0,0.000555,101]
[342997790,1732269405620,-150.0,0.00056,102]
[342997791,1732269405649,-47.0,0.000565,103]
[342997792,1732269440052,2206.69608928,0.00044778,20]
[342997793,1732269440728,161.91,0.00041096,2]
[342997794,1732269494520,548.29,0.0005,120]
[342997795,1732269570010,4516.71558754,0.00044217,120]
[342997829,1732269647802,2681.23805394,0.000498,120]
[342997830,1732269776521,250.0,0.00031,2]
[342997831,1732269948125,-166.45964829,0.00054795,120]
[342997833,1732270042178,-357.54035171,0.00054795,120]
[342997834,1732270042199,-246.96041068,0.00054795,120]
[342997835,1732270043085,-253.03958932,0.00054795,120]
[342997836,1732270043105,-500.0,0.00054795,120]
[342997837,1732270043125,-150.0,0.00055,100]
[342997838,1732270043150,-150.0,0.000555,101]
[342997839,1732270043171,-150.0,0.00056,102]
[342997840,1732270043191,-150.0,0.000565,103]
[342997841,1732270043212,-150.0,0.00057,104]
[342997842,1732270043236,-251.40826593,0.000575,105]
[342997843,1732270043256,-509.64658604,0.0006,30]
[342997844,1732270050114,-1490.35341396,0.0006,30]
[342997845,1732270050139,-150.0,0.0006022,2]
[342997846,1732270050162,-165.61979101,0.00067779,120]
[342997847,1732270090120,161.86,0.00041096,2]
[342997856,1732270148091,-801.66275267,0.00056672,120]
[342997857,1732270148114,-334.38020899,0.00067779,120]
[342997858,1732270148136,-15431.35225506,0.0007,30]
[342997859,1732270148273,-20961.56442717,0.0007,30]
[342997862,1732270152092,-35932.10885782,0.0007,30]
[342997863,1732270152114,-169.71,0.00070997,2]
[342997864,1732270152135,-13606.87,0.00070997,60]
[342997865,1732270152155,-500.0,0.00074534,120]
[342997866,1732270152176,-419.44627448,0.00078886,120]
[342997867,1732270152196,-3009.0,0.0008,120]
[342997868,1732270152218,-9069.14581668,0.0008,120]
[342997869,1732270152239,-500.0,0.00080662,120]
[342997870,1732270152264,-5061.0,0.00082592,30]
[342997871,1732270152285,-500.0,0.0008352,120]
[342997872,1732270152308,-738.37473676,0.000849,16]
[342997873,1732270152328,-1947.6853,0.00084986,30]
[342997874,1732270152352,-242.72,0.00085,120]
[342997875,1732270152375,-2935.72554926,0.00085,120]
[342997876,1732270152397,-940.57,0.00085,120]
[342997877,1732270152421,-5224.79081252,0.00085,120]
[342997878,1732270153098,-30681.01304538,0.00085,120]
[342997879,1732270162091,-2940.80424125,0.00085,120]
[342997880,1732270162118,-3668.80682976,0.00085,120]
[342997881,1732270174100,-1497.08403818,0.00085,120]
[342997886,1732270209906,306.0,0.0003,120]
[342997901,1732270231705,-4005.40634116,0.00085,120]
[342997902,1732270231715,-500.0,0.00085854,120]
[342997903,1732270231726,-157.42,0.00086004,120]
[342997904,1732270231735,-300.0,0.00086256,120]
[342997905,1732270231745,-738.52,0.00086374,30]
[342997906,1732270231755,-8513.32,0.00086555,120]
[342997907,1732270231765,-309.3384,0.00086582,2]
[342997908,1732270231775,-355.38,0.00086918,2]
[342997909,1732270231785,-1852.42,0.00087076,120]
[342997910,1732270231795,-170.81,0.00087222,30]
[342997911,1732270231805,-2000.0,0.00087299,120]
[342997912,1732270231815,-250.0,0.00087354,120]
[342997913,1732270231825,-154.47,0.00087559,120]
[342997914,1732270231834,-162.73,0.00087573,120]
[342997915,1732270231844,-250.0,0.00087839,120]
[342997916,1732270231856,-1000.0,0.00087855,120]
[342997917,1732270231866,-2753.07,0.00087933,7]
[342997918,1732270231875,-2986.71,0.00087936,2]
[342997919,1732270231885,-23900.0,0.00087938,30]
[342997920,1732270231894,-250.0,0.00087997,120]
[342997921,1732270231903,-234.67,0.00088071,120]
[342997922,1732270231913,-250.0,0.00088808,120]
[342997923,1732270231921,-374.13,0.00088827,120]
[342997924,1732270231931,-482.95,0.00088831,6]
[342997925,1732270231941,-355.38,0.00089182,2]
[342997926,1732270231951,-323.57,0.0008934,120]
[342997927,1732270231960,-150.0,0.00089365,120]
[342997928,1732270231970,-150.0,0.00089464,120]
[342997929,1732270231979,-150.0,0.00089491,120]
[342997930,1732270231988,-150.0,0.00089601,120]
[342997931,1732270231998,-150.0,0.00089722,120]
[342997932,1732270232008,-150.0,0.00089783,120]
[342997933,1732270232017,-150.0,0.00089807,120]
[342997934,1732270232027,-150.0,0.00089812,120]
[342997935,1732270232036,-150.0,0.00089877,120]
[342997936,1732270232045,-150.0,0.00089884,120]
[342997937,1732270232053,-261.14209206,0.000899,120]
[342997938,1732270232062,-150.0,0.00089908,120]
[342997939,1732270232071,-359.34,0.00090052,2]
[342997940,1732270232080,-359.34,0.00090075,2]
[342997941,1732270232090,-359.34,0.00090099,2]
[342997942,1732270232100,-359.34,0.00090123,2]
[342997943,1732270232114,-359.34,0.00090146,2]
[342997944,1732270232123,-359.34,0.0009017,2]
[342997945,1732270232132,-359.34,0.00090194,2]
[342997946,1732270232142,-359.34,0.00090218,2]
[342997947,1732270232152,-359.34,0.00090241,2]
[342997948,1732270232161,-359.34,0.00090265,2]
[342997949,1732270232171,-359.34,0.00090289,2]
[342997950,1732270232180,-359.34,0.00090312,2]
[342997951,1732270232189,-359.34,0.00090336,2]
[342997952,1732270232199,-359.34,0.0009036,2]
[342997953,1732270232209,-359.34,0.00090383,2]
[342997954,1732270232218,-359.34,0.00090407,2]
[342997955,1732270232228,-359.34,0.00090431,2]
[342997956,1732270232237,-359.34,0.00090455,2]
[342997957,1732270232246,-359.34,0.00090478,2]
[342997958,1732270232256,-359.34,0.00090502,2]
[342997959,1732270232265,-7264.18288656,0.0009078,7]
[342997960,1732270232275,-940.571,0.0009125,120]
[342997961,1732270232284,-355.38,0.00091446,2]
[342997962,1732270232294,-785.32602948,0.00092145,120]
[342997963,1732270232303,-1394.846,0.000929,120]
[342997964,1732270232312,-5843.91239031,0.000929,30]
[342997995,1732270237646,-8375.86460448,0.000929,30]
[342997996,1732270237661,-11415.15370521,0.000929,30]
[342997997,1732270237671,-319.36138403,0.0009295,2]
[342997998,1732270237680,-601.04129796,0.0009295,15]
[342997999,1732270237689,-30397.40256607,0.00093,63]
[342998000,1732270237704,-1259.46,0.00093,63]
[342998001,1732270237723,-985.21,0.00093,63]
[342998002,1732270237740,-585.17802667,0.00093,63]
[342998003,1732270237752,-732.45575,0.00093,63]
[342998004,1732270237764,-6801.29394007,0.00093,63]
[342998005,1732270237775,-450.57754012,0.00093,63]
[342998006,1732270237786,-9851.5,0.00093,63]
[342998007,1732270237797,-1255.02193776,0.00093,63]
[342998008,1732270237808,-1373.08667666,0.00093,63]
[342998010,1732270238407,-1846.6933208,0.00093,63]
[342998013,1732270238418,-4202.256698,0.00093,63]
[342998014,1732270238434,-23148.84873534,0.00093,63]
[342998015,1732270238446,-5255.92241343,0.00093,63]
[342998016,1732270238459,-451.00207171,0.00093,63]
[342998017,1732270238586,-319.8,0.00093,63]
[342998018,1732270238599,-11084.29032337,0.00093,63]
[342998019,1732270238608,-3951.04047263,0.0009305,8]
[342998020,1732270238621,-5529.89355,0.0009305,8]
[342998021,1732270238633,-3649.93045815,0.0009305,8]
[342998022,1732270238644,-352.5119,0.0009305,8]
[342998024,1732270239669,2960.27573964,0.0004421,120]
[342998025,1732270239691,2354.77364332,0.0004421,120]
[342998026,1732270239712,370.95061704,0.0004421,120]
[342998027,1732270239740,-6516.62361922,0.0009305,8]
[342998028,1732270239749,-35215.3781,0.0009305,120]
[342998029,1732270239758,-2500.0,0.0009305,120]
[342998030,1732270239768,-500.0,0.00093149,120]
[342998031,1732270239778,-500.0,0.00093149,120]
[342998032,1732270239788,-500.0,0.00093149,120]
[342998033,1732270239797,-629.0,0.0009315,60]
[342998034,1732270239806,-504.86696246,0.0009315,120]
[342998035,1732270239815,-500.0,0.0009315,120]
[342998036,1732270239824,-500.0,0.0009315,120]
[342998037,1732270239833,-500.0,0.0009315,120]
[342998038,1732270239843,-532.41482311,0.0009315,120]
[342998039,1732270239852,-500.0,0.0009315,120]
[342998040,1732270239862,-500.0,0.0009315,120]
[342998041,1732270239872,-500.0,0.0009315,120]
[342998042,1732270239881,-500.0,0.0009315,120]
[342998043,1732270239890,-500.0,0.0009315,120]
[342998044,1732270239899,-500.0,0.0009315,120]
[342998045,1732270239908,-500.0,0.0009315,120]
[342998046,1732270239917,-500.0,0.0009315,120]
[342998047,1732270239926,-500.0,0.0009315,120]
[342998048,1732270239935,-500.0,0.0009315,120]
[342998049,1732270239945,-500.0,0.0009315,120]
[342998050,1732270239954,-500.0,0.0009315,120]
[342998051,1732270239963,-500.0,0.0009315,120]
[342998052,1732270239972,-500.0,0.0009315,120]
[342998054,1732270239982,-500.0,0.0009315,120]
[342998056,1732270239992,-500.0,0.0009315,120]
[342998057,1732270240001,-500.0,0.0009315,120]
[342998058,1732270240010,-500.0,0.0009315,120]
[342998059,1732270240020,-500.0,0.0009315,120]
[342998060,1732270240029,-351.22,0.0009315,120]
[342998061,1732270240038,-500.0,0.0009315,120]
[342998062,1732270240048,-500.0,0.0009315,120]
[342998063,1732270240057,-500.0,0.0009315,120]
[342998064,1732270240066,-500.0,0.0009315,120]
[342998065,1732270240076,-500.0,0.0009315,120]
[342998066,1732270240085,-601.77596568,0.0009315,120]
[342998067,1732270240094,-500.0,0.0009315,120]
[342998068,1732270240104,-502.34668967,0.0009315,120]
[342998069,1732270240115,-394.80275839,0.0009315,120]
[342998070,1732270240125,-500.0,0.0009315,120]
[342998071,1732270240135,-500.0,0.0009315,120]
[342998072,1732270240144,-500.0,0.0009315,120]
[342998073,1732270240153,-500.0,0.0009315,120]
[342998074,1732270240163,-500.0,0.0009315,120]
[342998075,1732270240172,-500.0,0.0009315,120]
[342998076,1732270240181,-500.0,0.0009315,120]
[342998077,1732270240191,-205.33946705,0.0009315,120]
[342998078,1732270240200,-500.0,0.0009315,120]
[342998079,1732270240209,-500.0,0.0009315,120]
[342998080,1732270240218,-500.0,0.0009315,120]
[342998081,1732270240228,-502.2518641,0.0009315,120]
[342998082,1732270240237,-202.18,0.0009315,120]
[342998083,1732270240246,-500.0,0.0009315,120]
[342998084,1732270240255,-500.0,0.0009315,120]
[342998085,1732270240264,-500.0,0.0009315,120]
[342998086,1732270240274,-500.0,0.0009315,120]
[342998087,1732270240283,-502.65811736,0.0009315,120]
[342998088,1732270240292,-271.07861597,0.0009315,6]
[342998090,1732270240302,-500.0,0.0009315,120]
[342998091,1732270240311,-500.0,0.0009315,120]
[342998092,1732270240320,-500.0,0.0009315,120]
[342998093,1732270240329,-1000.0,0.0009315,120]
[342998094,1732270240339,-1000.0,0.0009315,120]
[342998095,1732270240348,-500.0,0.0009315,120]
[342998096,1732270240358,-500.0,0.0009315,120]
[342998097,1732270240369,-500.0,0.0009315,120]
[342998098,1732270240379,-500.0,0.0009315,120]
[342998099,1732270240390,-500.0,0.0009315,120]
[342998100,1732270240399,-500.0,0.0009315,120]
[342998101,1732270240409,-500.60798122,0.0009315,120]
[342998102,1732270240418,-500.0,0.0009315,120]
[342998103,1732270240427,-500.0,0.0009315,120]
[342998104,1732270240436,-578.99,0.0009315,120]
[342998105,1732270240446,-500.0,0.0009315,120]
[342998106,1732270240456,-294.06952416,0.0009315,120]
[342998107,1732270240465,-500.0,0.0009315,120]
[342998108,1732270240475,-500.0,0.0009315,120]
[342998109,1732270240484,-517.30199464,0.0009315,120]
[342998110,1732270240494,-510.61522224,0.0009315,120]
[342998111,1732270240503,-500.0,0.0009315,120]
[342998112,1732270240512,-500.0,0.0009315,120]
[342998113,1732270240521,-488.55,0.0009315,120]
[342998114,1732270240530,-500.18175828,0.0009315,120]
[342998115,1732270240539,-500.0,0.0009315,120]
[342998116,1732270240548,-545.04,0.0009315,120]
[342998117,1732270240557,-500.0,0.0009315,120]
[342998118,1732270240566,-596.46,0.0009315,120]
[342998119,1732270240576,-500.0,0.0009315,120]
[342998120,1732270240585,-500.0,0.0009315,120]
[342998121,1732270240595,-500.0,0.0009315,120]
[342998122,1732270240604,-500.0,0.0009315,120]
[342998123,1732270240615,-162.57771043,0.0009315,120]
[342998124,1732270240624,-640.48497743,0.0009315,120]
[342998125,1732270240633,-502.18760409,0.0009315,120]
[342998126,1732270240642,-500.8456626,0.0009315,120]
[342998127,1732270240651,-500.0,0.0009315,120]
[342998128,1732270240660,-500.0,0.0009315,120]
[342998129,1732270240669,-500.0,0.0009315,120]
[342998130,1732270240678,-520.7150123,0.0009315,120]
[342998131,1732270240687,-500.0,0.0009315,120]
[342998132,1732270240697,-500.0,0.0009315,120]
[342998133,1732270240707,-500.0,0.0009315,120]
[342998134,1732270240716,-50.84848441,0.0009315,120]
[342998135,1732270240748,-449.15151559,0.0009315,120]
[342998136,1732270240758,-500.0,0.0009315,120]
[342998137,1732270240767,-500.0,0.0009315,120]
[342998138,1732270240776,-500.0,0.0009315,120]
[342998139,1732270240785,-502.87825922,0.0009315,120]
[342998140,1732270240794,-429.13544554,0.0009315,120]
[342998141,1732270240854,-14.2546546,0.0009315,120]
[342998146,1732270242898,-56.60989986,0.0009315,120]
[342998147,1732270242907,-397.03507037,0.0009315,120]
[342998148,1732270242963,-102.96492963,0.0009315,120]
[342998149,1732270242973,-500.0,0.0009315,120]
[342998150,1732270242982,-500.0,0.0009315,120]
[342998151,1732270242992,-500.0,0.0009315,120]
[342998152,1732270243001,-500.0,0.0009315,120]
[342998153,1732270243010,-500.0,0.0009315,120]
[342998154,1732270243020,-500.0,0.0009315,120]
[342998155,1732270243029,-500.0,0.0009315,120]
[342998156,1732270243039,-500.0,0.0009315,120]
[342998157,1732270243048,-500.0,0.0009315,120]
[342998158,1732270243057,-500.0,0.0009315,120]
[342998159,1732270243067,-500.0,0.0009315,120]
[342998160,1732270243076,-263.55529532,0.0009315,120]
[342998161,1732270243090,-236.44470468,0.0009315,120]
[342998162,1732270243100,-500.0,0.0009315,120]
[342998163,1732270243109,-501.50801157,0.0009315,120]
[342998164,1732270243121,-500.0,0.0009315,120]
[342998165,1732270243130,-500.0,0.0009315,120]
[342998166,1732270243140,-500.0,0.0009315,120]
[342998167,1732270243149,-77.33807875,0.0009315,120]
[342998171,1732270245946,-97.88769216,0.00084,120]
[342998172,1732270245957,-53.11230784,0.00084,120]
[342998173,1732270245967,-422.66192125,0.0009315,120]
[342998174,1732270245977,-500.0,0.0009315,120]
[342998175,1732270245986,-500.0,0.0009315,120]
[342998176,1732270245995,-500.0,0.0009315,120]
[342998177,1732270246005,-500.0,0.0009315,120]
[342998178,1732270246014,-500.0,0.0009315,120]
[342998179,1732270246023,-500.0,0.0009315,120]
[342998180,1732270246033,-500.0,0.0009315,120]
[342998181,1732270246042,-500.0,0.0009315,120]
[342998182,1732270246051,-542.62,0.0009315,120]
[342998183,1732270246061,-500.0,0.0009315,120]
[342998184,1732270246070,-500.0,0.0009315,120]
[342998185,1732270246079,-500.0,0.0009315,120]
[342998186,1732270246089,-500.0,0.0009315,120]
[342998187,1732270246098,-500.0,0.0009315,120]
[342998188,1732270246107,-500.0,0.0009315,120]
[342998189,1732270246118,-500.0,0.0009315,120]
[342998190,1732270246128,-500.0,0.0009315,120]
[342998191,1732270246137,-500.0,0.0009315,120]
[342998192,1732270246147,-500.0,0.0009315,120]
[342998193,1732270246156,-500.0,0.0009315,120]
[342998194,1732270246165,-500.0,0.0009315,120]
[342998195,1732270246175,-500.0,0.0009315,120]
[342998196,1732270246184,-179.48164306,0.0009315,120]
[342998197,1732270246194,-501.55247554,0.0009315,120]
[342998198,1732270246203,-500.0,0.0009315,120]
[342998199,1732270246213,-500.0,0.0009315,120]
[342998200,1732270246222,-500.0,0.0009315,60]
[342998201,1732270246231,-500.0,0.0009315,60]
[342998202,1732270246241,-500.0,0.0009315,120]
[342998203,1732270246250,-500.0,0.0009315,120]
[342998204,1732270246259,-500.0,0.0009315,120]
[342998205,1732270246268,-500.0,0.0009315,120]
[342998206,1732270246277,-500.0,0.0009315,120]
[342998207,1732270246286,-500.0,0.0009315,120]
[342998208,1732270246295,-500.0,0.0009315,120]
[342998209,1732270246304,-500.0,0.0009315,120]
[342998210,1732270246314,-500.0,0.0009315,120]
[342998211,1732270246323,-500.0,0.0009315,120]
[342998212,1732270246332,-501.45905774,0.0009315,90]
[342998213,1732270246341,-501.9875843,0.0009315,120]
[342998214,1732270246350,-500.0,0.0009315,120]
[342998215,1732270246360,-588.94,0.0009315,120]
[342998216,1732270246371,-500.0,0.0009315,120]
[342998217,1732270246384,-383.47,0.0009315,120]
[342998218,1732270246480,-304.07809215,0.0009315,120]
[342998219,1732270246490,-500.0,0.0009315,120]
[342998220,1732270246499,-500.0,0.0009315,120]
[342998221,1732270246510,-500.0,0.0009315,120]
[342998222,1732270246520,-501.7227316,0.0009315,120]
[342998223,1732270246530,-500.0,0.0009315,120]
[342998224,1732270246539,-500.0,0.0009315,120]
[342998225,1732270246548,-500.0,0.0009315,120]
[342998226,1732270246558,-500.0,0.0009315,120]
[342998227,1732270246568,-500.0,0.0009315,120]
[342998228,1732270246577,-627.18971332,0.0009315,120]
[342998229,1732270246586,-500.0,0.0009315,120]
[342998230,1732270246596,-500.0,0.0009315,120]
[342998231,1732270246605,-500.0,0.0009315,120]
[342998232,1732270246616,-501.56845626,0.0009315,120]
[342998233,1732270246626,-500.0,0.0009315,120]
[342998234,1732270246635,-500.0,0.0009315,120]
[342998235,1732270246645,-500.0,0.0009315,120]
[342998236,1732270246654,-500.0,0.0009315,120]
[342998237,1732270246664,-500.0,0.0009315,120]
[342998238,1732270246673,-500.0,0.0009315,120]
[342998239,1732270246683,-500.0,0.0009315,120]
[342998240,1732270246693,-500.0,0.0009315,120]
[342998241,1732270246703,-500.0,0.0009315,120]
[342998242,1732270246713,-500.0,0.0009315,120]
[342998243,1732270246723,-500.0,0.0009315,120]
[342998244,1732270246732,-500.0,0.0009315,120]
[342998245,1732270246742,-500.0,0.0009315,120]
[342998246,1732270246751,-500.0,0.0009315,120]
[342998247,1732270246761,-500.0,0.0009315,120]
[342998248,1732270246771,-500.0,0.0009315,120]
[342998249,1732270246781,-500.0,0.0009315,120]
[342998250,1732270246791,-504.07,0.0009315,120]
[342998251,1732270246801,-500.0,0.0009315,120]
[342998252,1732270246810,-500.0,0.0009315,120]
[342998253,1732270246820,-501.55705613,0.0009315,120]
[342998254,1732270246830,-500.0,0.0009315,120]
[342998255,1732270246839,-1000.0,0.0009315,5]
[342998256,1732270246848,-1000.0,0.0009315,5]
[342998257,1732270246858,-500.0,0.0009315,120]
[342998258,1732270246869,-500.0,0.0009315,120]
[342998259,1732270246878,-500.73280078,0.0009315,120]
[342998260,1732270246887,-500.0,0.0009315,120]
[342998261,1732270246897,-500.0,0.0009315,120]
[342998262,1732270246906,-500.0,0.0009315,120]
[342998263,1732270246916,-533.03,0.0009315,120]
[342998264,1732270246925,-500.0,0.0009315,120]
[342998265,1732270246935,-500.0,0.0009315,120]
[342998266,1732270246944,-500.0,0.0009315,120]
[342998267,1732270246954,-500.0,0.0009315,120]
[342998268,1732270246964,-500.0,0.0009315,120]
[342998269,1732270246973,-500.0,0.0009315,120]
[342998270,1732270246983,-500.0,0.0009315,120]
[342998271,1732270246993,-500.0,0.0009315,120]
[342998272,1732270247003,-500.0,0.0009315,120]
[342998273,1732270247014,-500.0,0.0009315,120]
[342998274,1732270247024,-500.0,0.0009315,120]
[342998275,1732270247034,-500.52949586,0.0009315,120]
[342998276,1732270247044,-500.0,0.0009315,120]
[342998277,1732270247055,-500.0,0.0009315,120]
[342998278,1732270247065,-500.0,0.0009315,120]
[342998279,1732270247075,-500.0,0.0009315,120]
[342998280,1732270247085,-500.0,0.0009315,120]
[342998281,1732270247095,-500.0,0.0009315,120]
[342998282,1732270247105,-500.0,0.0009315,120]
[342998283,1732270247121,-500.0,0.0009315,120]
[342998284,1732270247130,-500.0,0.0009315,120]
[342998285,1732270247139,-500.0,0.0009315,120]
[342998286,1732270247148,-500.0,0.0009315,120]
[342998287,1732270247157,-500.0,0.0009315,120]
[342998288,1732270247166,-501.6127443,0.0009315,120]
[342998289,1732270247176,-500.0,0.0009315,120]
[342998290,1732270247185,-500.0,0.0009315,120]
[342998291,1732270247194,-500.0,0.0009315,120]
[342998292,1732270247204,-500.0,0.0009315,120]
[342998293,1732270247213,-500.0,0.0009315,120]
[342998294,1732270247223,-500.0,0.0009315,120]
[342998295,1732270247233,-500.0,0.0009315,120]
[342998296,1732270247243,-500.0,0.0009315,120]
[342998297,1732270247253,-500.0,0.0009315,120]
[342998298,1732270247262,-209.25,0.0009315,120]
[342998299,1732270247273,-500.0,0.0009315,120]
[342998300,1732270247283,-500.0,0.0009315,120]
[342998301,1732270247292,-500.0,0.0009315,120]
[342998302,1732270247302,-500.0,0.0009315,120]
[342998303,1732270247311,-500.0,0.0009315,120]
[342998304,1732270247321,-500.0,0.0009315,120]